Cogmind - Beta 9.3 @@@ ROGUE MODE // 2020.01.01 @ 16:00:55 Player: Cipherpunk Result: Destroyed by as-57313 with Assembled Heavy Rifle Performance ------------- Evolutions (0) 0 Regions Visited (4) 800 Robots Destroyed (22) 110 Value Destroyed (496) 496 Prototype IDs (24) 480 Alien Tech Used (0) 0 Bonus (114) 114 TOTAL SCORE: 2000 Bonus ------- Follower Combat Kills 25 Aligned with FarCom 300 Friendly Fire -211 Cogmind --------- Core Integrity 0/250 Matter 243/300 Energy 100/100 System Corruption 4% Temperature Cool (0) Movement Walking (120) Location -9/Mines Parts ------- > --- POWER (1) -------- (None) > --- PROPULSION (2) --- Aluminum Leg Aluminum Leg > --- UTILITY (2) ------ Lightpack 2.0 > --- WEAPON (2) ------- Light Assault Rifle > --- INVENTORY (24) --- Light Ion Engine Aluminum Leg Terrain Scanner Seismic Analyzer Light Armor Plating Mining Laser Peak State ------------ > --- POWER ------------ Light Nuclear Core > --- PROPULSION ------- Aluminum Leg Aluminum Leg > --- UTILITY ---------- Lightpack 2.0 > --- WEAPON ----------- Medium Laser Light Cannon > --- INVENTORY -------- Aluminum Leg Aluminum Leg Medium Storage Unit Large Storage Unit High-capacity Storage Unit Terrain Scanner Light Armor Plating EM Pulse Gun EM Pulse Gun Mining Laser [Rating: 28] Favorites ----------- Power Ion Engine Engine Ion Engine Power Core Light Nuclear Core Propulsion Aluminum Leg Leg Aluminum Leg Utility Large Storage Unit Storage Large Storage Unit Weapon Light Assault Rifle Energy Gun Medium Laser Ballistic Gun Light Assault Rifle Ballistic Cannon Light Cannon Build | -11 -10 -10 -10 -9 ------- Run | Scr Mat Min Exi Min Slots Evolved . | . . . . . Power . | . . . . . Propulsion . | . . . . . Utility . | . . . . . Weapon . | . . . . . Parts Attached 27 | . 12 8 1 6 Power 4 | . 1 2 . 1 Engine 2 | . 1 1 . . Core 2 | . . 1 . 1 Reactor . | . . . . . Propulsion 11 | . 5 4 . 2 Treads . | . . . . . Leg 11 | . 5 4 . 2 Wheel . | . . . . . Hover . | . . . . . Flight . | . . . . . Utility 5 | . 4 . 1 . Device . | . . . . . Storage 5 | . 4 . 1 . Processor . | . . . . . Hackware . | . . . . . Protection . | . . . . . Artifact . | . . . . . Weapon 7 | . 2 2 . 3 Energy Gun 5 | . 2 1 . 2 Energy Cannon . | . . . . . Ballistic Gun 1 | . . . . 1 Ballistic Cannon 1 | . . 1 . . Launcher . | . . . . . Special Weapon . | . . . . . Impact Weapon . | . . . . . Slashing Weapon . | . . . . . Piercing Weapon . | . . . . . Special Melee Weapon . | . . . . . Unidentified Prototypes . | . . . . . Parts Lost 13 | . 3 3 . 7 Power 3 | . 1 1 . 1 Propulsion 3 | . 1 . . 2 Utility . | . . . . . Weapon 7 | . 1 2 . 4 Highest Loss Streak 5 | . 1 2 . 5 Average Slot Usage (%) 96 | . 98 99 92 77 Engine 8 | . 13 4 . . Core 5 | . . 9 14 11 Leg 27 | . 27 28 28 27 Storage 25 | . 27 28 20 14 Energy Gun 8 | . 3 13 14 15 Ballistic Gun 13 | . 24 1 . 2 Ballistic Cannon 5 | . . 12 14 5 Naked Turns . | . . . . . Heaviest Build 34 | 12 32 34 34 15 Greatest Support 20 | 20 20 20 20 20 Greatest Overweight (x) 1 | . 1 1 1 . Average Overweight (x) . | . . 1 . . Largest Inventory Capacity 24 | 6 14 14 24 24 Average Capacity 14 | 6 11 14 18 24 Most Carried 16 | 6 14 14 16 11 Average Carried 11 | 6 10 13 12 8 Final Capacity 24 | 6 14 14 24 24 Final Carried 14 | 6 14 14 11 6 Class Distribution -------------------- 85% | Mutant 14% | Hauler-Mutant Dominant Class ---------------- Mutant | -10/Materials Mutant | -10/Mines Hauler-Mutant | -10/Exiles Hauler-Mutant | -9/Mines Resources | -11 -10 -10 -10 -9 ----------- Run | Scr Mat Min Exi Min Matter Collected 661 | 200 236 165 . 60 Remotely . | . . . . . Salvage Created 610 | . 354 180 . 76 Parts 31 | . 22 9 . . Haulers Intercepted . | . . . . . Recyclers Shooed 1 | . . 1 . . Parts Field Recycled . | . . . . . Retrieved Matter . | . . . . . Parts Self-Destructed . | . . . . . Prevented . | . . . . . Kills | -11 -10 -10 -10 -9 ------- Run | Scr Mat Min Exi Min Combat Hostiles Destroyed 20 | . 10 6 . 4 Guns 16 | . 10 2 . 4 Cannons 3 | . . 3 . . AOE 1 | . . 1 . . Classes Destroyed 4 | . 3 . . 1 Worker 1 | . 1 . . . Swarmer 6 | . 3 3 . . Grunt 11 | . 7 4 . . Assembled 4 | . . . . 4 Best Kill Streak 4 | . 3 3 . 4 Combat Bots Only 4 | . 3 3 . 4 Max Kills in Single Turn 2 | . 1 2 . 1 Gunslinging . | . . . . . Exploded 1 | . . 1 . . Melee . | . . . . . Uniques/NPCs Destroyed . | . . . . . Combat | -11 -10 -10 -10 -9 -------- Run | Scr Mat Min Exi Min Damage Taken 1686 | . 745 316 . 625 Core 257 | . 114 27 . 116 Absorbed by Shields . | . . . . . Core Remaining (%) 100 | 100 . . . . Volleys Fired 91 | . 50 23 . 18 Largest 2 | . 2 2 . 2 Hottest 85 | . 70 85 . 80 Shots Fired 174 | . 95 46 . 33 Gun 152 | . 95 24 . 33 Cannon 22 | . . 22 . . Launcher . | . . . . . Special . | . . . . . Kinetic 103 | . 78 23 . 2 Thermal 40 | . 17 23 . . Explosive . | . . . . . Electromagnetic 31 | . . . . 31 Robot Hit Streak 9 | . 9 7 . 5 Robot Miss Streak 4 | . 3 3 . 4 Penetration Max . | . . . . . Secondary Targets 1 | . . . . 1 Max Gunslinging Chain 1 | . . . . 1 Shots Hit Robots 98 | . 57 24 . 17 Core Hits 44 | . 28 9 . 7 Critical Hits 1 | . . 1 . . Critical Kills 1 | . . 1 . . Critical Parts Destroyed . | . . . . . Melee Attacks . | . . . . . Impact . | . . . . . Slashing . | . . . . . Piercing . | . . . . . Sneak Attacks . | . . . . . Combat Hostiles . | . . . . . Follow-up Attacks . | . . . . . Damage Inflicted 1316 | . 607 540 . 169 Guns 938 | . 607 162 . 169 Cannons 231 | . . 231 . . Explosions 147 | . . 147 . . Melee . | . . . . . Ramming . | . . . . . Kinetic 687 | . 456 231 . . Thermal 460 | . 151 309 . . Explosive . | . . . . . Electromagnetic 169 | . . . . 169 Impact . | . . . . . Slashing . | . . . . . Piercing . | . . . . . Highest Corruption 4 | . 4 4 4 4 Average Corruption 3 | . 3 4 4 4 Corruption Purged . | . . . . . Effects 51 | . 23 15 6 7 Message Errors 13 | . 6 1 3 3 Matter Fused 12 | . 2 6 2 2 Heat Flow Errors 2 | . 2 . . . Energy Discharges 8 | . 5 2 1 . Parts Rejected 1 | . . . . 1 Data Loss (minor) 5 | . 2 3 . . Targeting Errors 7 | . 4 3 . . Weapon Failures 3 | . 2 . . 1 Overload Shots . | . . . . . Overflow Damage 6 | . . 6 . . Projectiles 2 | . . 2 . . Explosions 4 | . . 4 . . Melee . | . . . . . Knockbacks 3 | . . 3 . . Impact . | . . . . . Kinetic 3 | . . 3 . . Secondary . | . . . . . Self-Inflicted Damage 27 | . . 27 . . Shots 1 | . . 1 . . Rammed . | . . . . . Targets Rammed . | . . . . . Kicked . | . . . . . Crushed . | . . . . . Highest Temperature 269 | . 269 264 . 254 Average Temperature 83 | . 54 93 . 115 Received Heat Transfer 526 | . 342 84 . 100 Siege Activations . | . . . . . Robots Corrupted . | . . . . . Combat Hostiles . | . . . . . Parts Fried . | . . . . . Impact Corruptions . | . . . . . Robots Melted . | . . . . . Combat Hostiles . | . . . . . Parts Melted . | . . . . . Heat Transferred 1075 | . 444 631 . . Parts Sabotaged . | . . . . . Parts Stolen . | . . . . . Parts Stripped . | . . . . . Power Chain Reactions . | . . . . . Missiles Intercepted . | . . . . . Alert | -11 -10 -10 -10 -9 ------- Run | Scr Mat Min Exi Min Peak Influence 196 | . 180 196 . . Average Influence 48 | . 42 77 . . Maximum Alert Level . | . . . . . Low Security (%) 100 | 100 100 100 . 100 Level 1 . | . . . . . Level 2 . | . . . . . Level 3 . | . . . . . Level 4 . | . . . . . Level 5 . | . . . . . High Security . | . . . . . Max Security . | . . . . . Squads Dispatched 2 | . 2 . . . Investigation . | . . . . . Extermination . | . . . . . Reinforcement 2 | . 2 . . . Assault . | . . . . . Garrison . | . . . . . Intercept . | . . . . . Construction Impeded . | . . . . . Haulers Reinforced . | . . . . . Stealth | -11 -10 -10 -10 -9 --------- Run | Scr Mat Min Exi Min Distress Signals 4 | . 4 . . . Communications Jammed . | . . . . . Distress Signals . | . . . . . Times Spotted 53 | . 27 11 . 15 Peak Tracking Total 6 | . 4 5 . 6 Tactical Retreats 8 | . 3 2 . 3 Traps | -11 -10 -10 -10 -9 ------- Run | Scr Mat Min Exi Min Traps Triggered 2 | . 2 . . . Indirectly . | . . . . . Trap Hack Attempts . | . . . . . Triggered . | . . . . . Disarmed . | . . . . . Reprogrammed . | . . . . . Reused . | . . . . . Traps Extracted . | . . . . . Installed . | . . . . . Triggered . | . . . . . Machines | -11 -10 -10 -10 -9 ---------- Run | Scr Mat Min Exi Min Machines Disabled 3 | . . 3 . . Max in Single Turn 3 | . . 3 . . Machines Sabotaged . | . . . . . Garrisons Compromised . | . . . . . Overloaded Fab Kills . | . . . . . Fab Network Shutdowns . | . . . . . Hacking | -11 -10 -10 -10 -9 --------- Run | Scr Mat Min Exi Min Machines Accessed 8 | . 7 . 1 . Terminals 6 | . 6 . . . Fabricators . | . . . . . Repair Stations . | . . . . . Recycling Units 1 | . 1 . . . Scanalyzers . | . . . . . Garrison Access . | . . . . . Total Hacks 18 | . 17 . 1 . Successful 10 | . 9 . 1 . Failed 8 | . 8 . . . Catastrophic 3 | . 3 . . . Database Lockouts . | . . . . . Manual 12 | . 11 . 1 . Terminals 15 | . 15 . . . Fabricators . | . . . . . Repair Stations . | . . . . . Recycling Units 2 | . 2 . . . Scanalyzers . | . . . . . Garrison Access . | . . . . . Terminal Hacks 5 | . 4 . 1 . Robot Analysis 1 | . 1 . . . Prototype ID Bank 1 | . 1 . . . Dispatch Records 1 | . 1 . . . Registered Components 1 | . 1 . . . EX-Prototype ID Bank 1 | . . . 1 . Fabricator Hacks . | . . . . . Repair Station Hacks . | . . . . . Recycling Unit Hacks 2 | . 2 . . . Retrieve Components 2 | . 2 . . . Scanalyzer . | . . . . . Garrison Access Hacks . | . . . . . Unauthorized Hacks 9 | . 9 . . . Terminals 3 | . 3 . . . Botnet 3 | . 3 . . . Fabricators . | . . . . . Repair Stations . | . . . . . Recycling Units . | . . . . . Scanalyzers . | . . . . . Garrison Access . | . . . . . Data Cores Recovered . | . . . . . Used . | . . . . . Hacking Detections 6 | . 6 . . . Full Trace Events . | . . . . . Feedback Events . | . . . . . Feedback Blocked . | . . . . . Robot Schematics Acquired . | . . . . . Robots Built . | . . . . . Matter . | . . . . . Time . | . . . . . Total Robot Build Rating . | . . . . . Part Schematics Acquired . | . . . . . Parts Built . | . . . . . Matter . | . . . . . Time . | . . . . . Total Part Build Rating . | . . . . . Parts Repaired . | . . . . . Time . | . . . . . Parts Recycled . | . . . . . Recycled Matter . | . . . . . Retrieved Matter . | . . . . . Retrieved Components 3 | . 3 . . . Parts Scanalyzed . | . . . . . Part Schematics Acquired . | . . . . . Parts Damaged . | . . . . . Bothacking | -11 -10 -10 -10 -9 ------------ Run | Scr Mat Min Exi Min Used RIF Installer . | . . . . . Robots Hacked . | . . . . . Non-combat . | . . . . . Combat . | . . . . . Robot Hacks Applied . | . . . . . Relay Couplers Released . | . . . . . Robots Rewired . | . . . . . Allies Hacked . | . . . . . Hacks Repelled . | . . . . . Allies | -11 -10 -10 -10 -9 -------- Run | Scr Mat Min Exi Min Total Allies 3 | . . 3 . . Largest Group 3 | . . 3 1 1 Highest-Rated Group 40 | . . 40 13 13 Highest-Rated Ally 16 | . . 16 13 13 Total Orders . | . . . . . Ally Attacks 8 | . . 4 . 4 Total Damage 76 | . . 42 . 34 Kills 1 | . . 1 . . Allies Corrupted . | . . . . . Allies Melted . | . . . . . Intel | -11 -10 -10 -10 -9 ------- Run | Scr Mat Min Exi Min Robot Analysis Total 1 | . 1 . . . Derelict Logs Recovered . | . . . . . Drone Launches . | . . . . . Drone Recoveries . | . . . . . Exploration | -11 -10 -10 -10 -9 ------------- Run | Scr Mat Min Exi Min Turns Passed 2241 | 5 1232 514 345 145 Spaces Moved 1326 | 5 726 283 242 70 Core . | . . . . . Treads . | . . . . . Legs 1326 | 5 726 283 242 70 Wheels . | . . . . . Hover . | . . . . . Flight . | . . . . . Fastest Speed 120 | 120 120 150 120 120 Average Speed 139 | 120 138 150 135 120 Slowest Speed 150 | 120 150 150 150 120 Overloaded Moves . | . . . . . Propulsion Burnouts . | . . . . . Robots Hopped . | . . . . . Cave-ins Triggered . | . . . . . Exploration Rate (%) 48 | 2 93 60 60 25 Regions Visited 4 Branch Regions 3 Pre-discovered Areas 1 | . . 1 . . Known Exits Taken . | . . . . . Unknown Exits Taken 4 | 1 1 1 1 . Scrap Searched . | . . . . . Spaces Dug . | . . . . . Terrain Destroyed 11 | . . 11 . . Melee . | . . . . . Projectile . | . . . . . AOE 11 | . . 11 . . Actions | -11 -10 -10 -10 -9 --------- Run | Scr Mat Min Exi Min Total 1565 | 4 875 327 262 97 Wait 69 | . 56 9 1 3 Move 1322 | 4 725 282 241 70 Hop . | . . . . . Pick Up 30 | . 17 1 12 . Fast Attach 7 | . 4 1 1 1 Attach 9 | . 2 2 . 5 Detach . | . . . . . Swap 11 | . 6 5 . . Drop 26 | . 15 4 7 . Fire 91 | . 50 23 . 18 Melee . | . . . . . Ram . | . . . . . Kick . | . . . . . Crush . | . . . . . Escape Stasis . | . . . . . Rewire . | . . . . . Trap . | . . . . . Miscellaneous . | . . . . . Route ------- -11/Scrapyard -10/Materials (discovered 5 exits: [*Mat x3] / [*Min x2]) -10/Mines (discovered 2 exits: [*Mat] / *Exi) -10/Exiles -9/Mines History --------- Turn | Location | Event 1 | -11/Scrapyard | Discovered new exit (range 3) 6 | -11/Scrapyard | Entered Materials 130 | -10/Materials | Discovered new exit (range 5) 289 | -10/Materials | Discovered new exit (range 5) 307 | -10/Materials | Build established: Mutant 343 | -10/Materials | Discovered new exit (range 14) 478 | -10/Materials | Discovered new exit (range 12) 478 | -10/Materials | Discovered new exit (range 12) 1238 | -10/Materials | Entered Mines 1239 | -10/Mines | Learned location of Storage (-8) 1387 | -10/Mines | Core integrity fell below 50% 1580 | -10/Mines | Assisted by bots powering up and referring to "LRC-V3" 1677 | -10/Mines | Discovered new exit (range 8) 1745 | -10/Mines | Deemed a non-threat by the Exiles lab entrance 1745 | -10/Mines | Discovered new exit (range 5) 1752 | -10/Mines | Entered Exiles 1752 | -10/Exiles | Accompanied by 1 ally 1788 | -10/Exiles | Met 8R-AWN 1815 | -10/Exiles | Met EX-HEX 1854 | -10/Exiles | Met EX-BIN 1875 | -10/Exiles | Aligned with FarCom system 1877 | -10/Exiles | Given EX-Vault access code 1917 | -10/Exiles | Opened EX-Vault 1943 | -10/Exiles | Found Lightpack 2.0 2006 | -10/Exiles | Warned to stay clear of 0b10 Research branches 2042 | -10/Exiles | Met EX-DEC 2085 | -10/Exiles | Discovered new exit (range 11) 2097 | -10/Exiles | Left Exiles lab with Lightpack 2.0 2097 | -10/Exiles | Entered Mines 2097 | -9/Mines | Accompanied by 1 ally 2114 | -9/Mines | Assembled infested the area 2231 | -9/Mines | Core integrity fell below 20% 2239 | -9/Mines | Build established: Hauler-Mutant 2242 | -9/Mines | Destroyed by as-57313 with Assembled Heavy Rifle Last Messages --------------- 02193_ Switching to secondary target: as-07166. 02203_ System corrupted: Lgt. Nuclear Core rejected. 02205_ as-70875 destroyed. 02210_ Acquired 20 matter. 02214_ EM Pulse Gun destroyed. 02216_ Acquired Lgt. Nuclear Core. 02218_ 7UYI:VHOBRDFE2 I0/U T6, 02224_ K-01 Serf collects debris. 02224_ Critical hit. 02224_ Lgt. Nuclear Core destroyed. 02226_ K-01 Serf collects debris. 02229_ Knocked back. 02230_ Acquired 20 matter. 02230_ K-01 Serf collects debris. 02231_ R-06 Scavenger collects Structural Scanner. 02233_ K-01 Serf collects debris. 02235_ R-06 Scavenger collects Terrain Scanner. 02236_ K-01 Serf collects debris. 02238_ as-13600 destroyed. 02239_ K-01 Serf collects debris. Map ----- +----------------------------------------------------+ | ????????????????????????????????????????## ? | | ????????????????????????????????????????# ? | | ???????????????????????????????????????## ? | | ???????????????????????????????????????# """ | | ???????????????????????????????????????? """ | | ????????????????????????????????????????? """ | | ?????????????????????????????????????????# | | ?????????????????????????????????????????# | | ????????????????????????????????????????## | | ????????????????????????????############# | | ????????????????????????????# | | ????????????????????????????# | | ???????????????????????????## ###?####### # # | | ??????????????????????????## #########%## ## | | ??????????????????????????# % ## ## | | ??????????????????????????# ########### # | | ??????????????????????????# ##???????## | | ??????????????????????????# ##???????## | | ?????????????????????????## a ##????????# | | ????????????????????????## a #????????# ## | | ???????????????????????## #??????# #?## | | ??????????????????????## #?????# ???# | | ?????????????????????## ##????# #???# # | | ????????????????????## ##????# ###????# # | | ???????????????????## ##????? #???????# # | | ???????????????????# %k@##??????# #????????# # | | ??????????????????## kr ##?????????#?????????# # | | ??????????????????# #????????????????????# # | | ?????????????????# ##????????????????????# | | ????????????????# #?????????????????????# | | ????????????? s #?????????????????Y???+ | | ?????????? #?????????????????Y???+ | | ??????????? ss #?????????????????????# | | ?????????? #### s##?????????????????????# | | ??????????? #???## ???????????????????????### | | ??????????? ??????# ?????????????????????????## | | ???????????? ???????# ??????????????????????????# | | ????????????????????# ??????????????????????????? | | ????????????????????# ??????????????????????????? | | ????????????????????# ??????????????????????????? | | ????????????????????# ??????????????????????????? | | ????????????????????? ???????????????????????????? | | ?????????????????????????????????????????????????? | | ?????????????????????????????????????????????????? | | ?????????????????????????????????????????????????? | | ?????????????????????????????????????????????????? | | ?????????????????????????????????????????????????? | | ?????????????????????????????????????????????????? | | ?????????????????????????????????????????????????? | | ?????????????????????????????????????????????????? | +----------------------------------------------------+ Best States ------------- Heat Dissipation 25 Energy Generation 14 Energy Capacity 250 Matter Stores 300 Matter Capacity 400 Sight Range 16 Terrain Scan Density 10 Evasion (%) 40 Item Schematics ----------------- None Robot Schematics ------------------ None Fabricated ------------ Nothing Alien Tech Used ----------------- None Achievements -------------- None Challenges ------------ None Game ------ Seed TitaniumNuclearChronowheel Manual? 0 Play Time 00:19:29 Cumulative 80.9 hours Start 2020.01.01 @ 15:32:25 End 2020.01.01 @ 16:00:55 Sessions 1 Manual Loads 0 Difficulty Rogue Special Mode None Game No. 78 Rogue 78 Adventurer 0 Explorer 0 Win Type - Total 0 Types 0/0/0/0/0/0/0 Lore% 46 Gallery% 51 Achievement% 38 Wizard Run 0 Options --------- ASCII 0 Keyboard 1 Movement Numpad Keybinds 0 Fullscreen 2 Font 18/Terminus Map View 76x50 Tactical HUD 1 Map Filters NONE Filters NONE Steam 1 RUN: c6276ff4-d3f8-4523-8e6f-01d248f3c91c